[Event "4. Memorial Svat.Hastika OPEN"]
[Site "Jesenik, Czech Republic"]
[Date "2022.09.03"]
[Round "7.9"]
[White "Ondrackova, Veronika"]
[Black "Taborsky, Bedrich"]
[Result "0-1"]
[TimeControl "720+3"]
[WhiteFideId "23739983"]
[BlackFideId "378151"]
[WhiteElo "1213"]
[BlackElo "1793"]

1. e4 {[%clk 00:12:04]} {[%emt 00:00:01]} g6 {[%clk 00:12:06]} 2. d4 {[%clk
00:12:05]} {[%emt 00:00:02]} Bg7 {[%clk 00:12:08]} 3. Nf3 {[%clk 00:12:07]}
{[%emt 00:00:02]} c5 {[%clk 00:12:10]} 4. Nc3 {[%clk 00:11:59]} {[%emt
00:00:11]} cxd4 {[%clk 00:12:11]} {[%emt 00:00:02]} 5. Nxd4 {[%clk 00:12:01]}
{[%emt 00:00:02]} a6 {[%clk 00:12:10]} {[%emt 00:00:04]} 6. Be3 {[%clk
00:11:58]} {[%emt 00:00:05]} d6 {[%clk 00:12:07]} {[%emt 00:00:07]} 7. Be2
{[%clk 00:11:45]} {[%emt 00:00:15]} Nd7 {[%clk 00:12:05]} {[%emt 00:00:05]} 8.
O-O {[%clk 00:11:19]} {[%emt 00:00:29]} Ngf6 {[%clk 00:12:05]} {[%emt
00:00:03]} 9. Qd2 {[%clk 00:10:54]} {[%emt 00:00:28]} O-O {[%clk 00:12:06]}
{[%emt 00:00:02]} 10. Rad1 {[%clk 00:10:52]} {[%emt 00:00:05]} b5 {[%clk
00:12:01]} {[%emt 00:00:09]} 11. Nc6 {[%clk 00:09:08]} {[%emt 00:01:47]} Qe8
{[%clk 00:12:02]} {[%emt 00:00:02]} 12. Nd5 {[%clk 00:08:31]} {[%emt 00:00:40]}
Nxd5 {[%clk 00:11:58]} {[%emt 00:00:07]} 13. Qxd5 {[%clk 00:07:48]} {[%emt
00:00:47]} Nf6 {[%clk 00:11:23]} {[%emt 00:00:38]} 14. Qd3 {[%clk 00:06:00]}
{[%emt 00:01:51]} Qxc6 {[%clk 00:11:24]} {[%emt 00:00:02]} 15. Bf3 {[%clk
00:05:50]} {[%emt 00:00:13]} Bg4 {[%clk 00:10:58]} {[%emt 00:00:29]} 16. e5
{[%clk 00:04:11]} {[%emt 00:01:42]} Bxf3 {[%clk 00:10:53]} {[%emt 00:00:09]} 17.
exf6 {[%clk 00:04:08]} {[%emt 00:00:05]} Be4 {[%clk 00:10:54]} {[%emt
00:00:01]} 18. fxg7 {[%clk 00:02:53]} {[%emt 00:01:19]} Bxd3 {[%emt 00:00:10]}
19. gxf8=Q+ Rxf8 {[%clk 00:10:41]} 20. Rxd3 {[%clk 00:02:53]} {[%emt 00:00:04]}
Qxc2 {[%clk 00:10:40]} {[%emt 00:00:04]} 21. Rd2 {[%clk 00:02:34]} {[%emt
00:00:23]} Qc4 {[%clk 00:10:32]} {[%emt 00:00:10]} 22. a3 {[%clk 00:02:12]}
{[%emt 00:00:25]} d5 {[%clk 00:10:28]} {[%emt 00:00:07]} 23. Rfd1 {[%clk
00:02:04]} {[%emt 00:00:11]} e6 {[%clk 00:10:30]} {[%emt 00:00:02]} 24. Bd4
{[%clk 00:01:41]} {[%emt 00:00:26]} h5 {[%clk 00:10:23]} {[%emt 00:00:09]} 25.
Bc3 {[%clk 00:01:04]} {[%emt 00:00:41]} Re8 {[%clk 00:10:18]} {[%emt 00:00:08]}
26. h3 {[%clk 00:00:54]} {[%emt 00:00:13]} Rc8 {[%clk 00:10:13]} {[%emt
00:00:08]} 27. Rd4 {[%clk 00:00:45]} {[%emt 00:00:13]} Qc6 {[%clk 00:10:12]}
{[%emt 00:00:02]} 28. R1d2 {[%clk 00:00:31]} {[%emt 00:00:19]} f6 {[%clk
00:10:06]} {[%emt 00:00:08]} 29. Rf4 {[%clk 00:00:19]} {[%emt 00:00:16]} e5
{[%clk 00:10:06]} {[%emt 00:00:02]} 30. Rf3 {[%clk 00:00:15]} {[%emt 00:00:07]}
d4 {[%clk 00:10:05]} {[%emt 00:00:04]} 31. Bb4 {[%clk 00:00:11]} {[%emt
00:00:07]} Kf7 {[%clk 00:10:00]} {[%emt 00:00:07]} 32. Kh2 {[%clk 00:00:06]}
{[%emt 00:00:09]} Qc7 {[%clk 00:09:57]} {[%emt 00:00:05]} 33. Rfd3 {[%clk
00:00:07]} {[%emt 00:00:02]} a5 {[%clk 00:09:58]} {[%emt 00:00:02]} 34. Bc3
{[%clk 00:00:04]} {[%emt 00:00:05]} dxc3 {[%clk 00:09:38]} {[%emt 00:00:22]} 35.
Rd7+ {[%clk 00:00:06]} {[%emt 00:00:02]} Qxd7 {[%clk 00:09:39]} {[%emt
00:00:03]} 36. Rxd7+ {[%clk 00:00:07]} {[%emt 00:00:01]} Ke6 {[%clk 00:09:41]}
37. Rd1 {[%clk 00:00:08]} {[%emt 00:00:02]} cxb2 {[%clk 00:09:42]} {[%emt
00:00:02]} 38. Rb1 {[%clk 00:00:10]} {[%emt 00:00:02]} Rc2 {[%clk 00:09:44]} 39.
Kg3 {[%clk 00:00:10]} {[%emt 00:00:03]} Kd5 {[%clk 00:09:43]} {[%emt 00:00:04]}
40. Kf3 {[%clk 00:00:12]} Kc4 {[%clk 00:09:45]} 41. Ke3 {[%clk 00:00:12]}
{[%emt 00:00:03]} Kb3 {[%clk 00:09:47]} 42. Kd3 {[%clk 00:00:13]} {[%emt
00:00:02]} Rxf2 {[%clk 00:09:44]} {[%emt 00:00:05]} 43. g4 {[%clk 00:00:10]}
{[%emt 00:00:07]} hxg4 {[%clk 00:09:45]} {[%emt 00:00:02]} 44. hxg4 {[%clk
00:00:12]} Kxa3 {[%clk 00:09:47]} {[%emt 00:00:01]} 45. Kc3 {[%clk 00:00:11]}
{[%emt 00:00:04]} b4 {[%clk 00:09:48]} {[%emt 00:00:01]} 46. Kd3 {[%clk
00:00:13]} {[%emt 00:00:02]} Kb3 {[%clk 00:09:48]} {[%emt 00:00:02]} 47. Ke3
{[%clk 00:00:12]} {[%emt 00:00:04]} Rg2 {[%clk 00:09:47]} {[%emt 00:00:04]} 48.
Kd3 {[%clk 00:00:12]} {[%emt 00:00:04]} Rxg4 {[%clk 00:09:47]} {[%emt
00:00:02]} 0-1

[Event "4. Memorial Svat.Hastika OPEN"]
[Site "Jesenik, Czech Republic"]
[Date "2022.09.03"]
[Round "7.10"]
[White "Pobucky, Ondrej"]
[Black "Poljak, Lucian"]
[Result "1-0"]
[TimeControl "720+3"]
[WhiteFideId "23742305"]
[BlackFideId "23740590"]
[WhiteElo "1426"]
[BlackElo "1367"]

1. e4 {[%clk 00:12:05]} e5 {[%clk 00:12:04]} {[%emt 00:00:03]} 2. c3 {[%clk
00:12:07]} {[%emt 00:00:01]} Nf6 {[%clk 00:12:02]} {[%emt 00:00:05]} 3. f3
{[%clk 00:11:35]} {[%emt 00:00:35]} Nxe4 {[%clk 00:11:32]} {[%emt 00:00:33]} 4.
fxe4 {[%clk 00:11:24]} {[%emt 00:00:13]} Qh4+ {[%clk 00:11:34]} {[%emt
00:00:02]} 5. Ke2 {[%clk 00:09:43]} {[%emt 00:01:44]} Qxe4+ {[%clk 00:11:17]}
{[%emt 00:00:20]} 6. Kf2 {[%clk 00:09:43]} {[%emt 00:00:02]} Bc5+ {[%clk
00:11:02]} {[%emt 00:00:19]} 7. d4 {[%clk 00:09:24]} {[%emt 00:00:23]} exd4
{[%clk 00:10:49]} {[%emt 00:00:15]} 8. Kg3 {[%clk 00:08:53]} {[%emt 00:00:33]}
Bd6+ {[%clk 00:10:08]} {[%emt 00:00:45]} 9. Kf2 {[%clk 00:08:32]} {[%emt
00:00:21]} Qh4+ {[%clk 00:09:47]} {[%emt 00:00:27]} 10. g3 {[%clk 00:07:39]}
{[%emt 00:00:56]} Bxg3+ {[%clk 00:08:45]} {[%emt 00:01:05]} 11. hxg3 {[%clk
00:07:41]} {[%emt 00:00:01]} Qxh1 {[%clk 00:08:47]} {[%emt 00:00:02]} 12. Bg2
{[%clk 00:07:38]} {[%emt 00:00:06]} Qh2 {[%clk 00:08:36]} {[%emt 00:00:14]} 13.
Qe1+ {[%clk 00:06:21]} {[%emt 00:01:20]} Kf8 {[%clk 00:07:28]} {[%emt
00:01:11]} 14. Bg5 {[%clk 00:06:02]} {[%emt 00:00:22]} f6 {[%clk 00:06:59]}
{[%emt 00:00:31]} 15. Bh4 {[%clk 00:06:04]} {[%emt 00:00:02]} d6 {[%clk
00:06:47]} {[%emt 00:00:15]} 16. Nf3 {[%clk 00:06:05]} {[%emt 00:00:02]} Qxg2+
{[%clk 00:05:33]} {[%emt 00:01:17]} 17. Kxg2 {[%clk 00:06:07]} {[%emt
00:00:02]} Bg4 {[%clk 00:04:38]} {[%emt 00:00:58]} 18. Nh2 {[%clk 00:05:44]}
{[%emt 00:00:25]} Bh5 {[%clk 00:04:00]} {[%emt 00:00:40]} 19. g4 {[%clk
00:05:45]} {[%emt 00:00:03]} Bg6 {[%clk 00:04:01]} {[%emt 00:00:01]} 20. cxd4
{[%clk 00:05:32]} {[%emt 00:00:16]} Nc6 {[%clk 00:03:58]} {[%emt 00:00:06]} 21.
Qc3 {[%clk 00:05:21]} {[%emt 00:00:11]} Re8 {[%clk 00:03:17]} {[%emt 00:00:49]}
22. Nd2 {[%clk 00:04:40]} {[%emt 00:00:44]} Bf7 {[%clk 00:02:46]} {[%emt
00:00:33]} 23. Re1 {[%clk 00:04:02]} {[%emt 00:00:41]} Bd5+ {[%clk 00:02:14]}
{[%emt 00:00:35]} 24. Kh3 {[%clk 00:03:01]} {[%emt 00:01:03]} Kf7 {[%clk
00:01:18]} {[%emt 00:01:00]} 25. Qd3 {[%clk 00:02:08]} {[%emt 00:00:56]} Nb4
{[%clk 00:00:47]} {[%emt 00:00:34]} 26. Qf5 {[%clk 00:01:25]} {[%emt 00:00:46]}
Be6 {[%clk 00:00:29]} {[%emt 00:00:21]} 27. Qb5 {[%clk 00:01:18]} {[%emt
00:00:06]} Nc6 {[%clk 00:00:28]} {[%emt 00:00:08]} 28. d5 {[%clk 00:01:09]}
{[%emt 00:00:12]} Bxd5 {[%clk 00:00:12]} {[%emt 00:00:19]} 29. Qxd5+ {[%clk
00:01:10]} {[%emt 00:00:02]} Kf8 {[%clk 00:00:12]} {[%emt 00:00:03]} 30. Rxe8+
{[%clk 00:01:05]} {[%emt 00:00:08]} Kxe8 {[%clk 00:00:14]} {[%emt 00:00:01]} 31.
Qb5 {[%clk 00:01:04]} {[%emt 00:00:03]} Kd7 {[%clk 00:00:05]} {[%emt 00:00:17]}
32. Qxb7 {[%clk 00:01:05]} {[%emt 00:00:03]} Rb8 {[%clk 00:00:07]} 33. Qa6
{[%clk 00:01:02]} {[%emt 00:00:04]} Rxb2 {[%clk 00:00:08]} {[%emt 00:00:03]} 34.
Qd3 {[%clk 00:00:56]} {[%emt 00:00:06]} Ne5 {[%clk 00:00:09]} {[%emt 00:00:05]}
35. Qf5+ {[%clk 00:00:55]} {[%emt 00:00:04]} Ke7 {[%emt 00:00:05]} 36. Ndf3
{[%clk 00:00:49]} {[%emt 00:00:07]} Rxa2 {[%clk 00:00:08]} {[%emt 00:00:04]} 37.
Nxe5 {[%clk 00:00:50]} {[%emt 00:00:03]} dxe5 {[%clk 00:00:09]} {[%emt
00:00:01]} 38. Qxh7 {[%clk 00:00:47]} {[%emt 00:00:06]} Ra3+ {[%clk 00:00:10]}
{[%emt 00:00:02]} 39. Bg3 {[%clk 00:00:45]} {[%emt 00:00:05]} Kf7 {[%clk
00:00:12]} {[%emt 00:00:01]} 40. Qh5+ {[%clk 00:00:45]} {[%emt 00:00:03]} Kf8
{[%clk 00:00:12]} {[%emt 00:00:03]} 41. Qf5 {[%clk 00:00:43]} {[%emt 00:00:05]}
Kf7 {[%clk 00:00:13]} {[%emt 00:00:02]} 42. Qd7+ {[%clk 00:00:44]} {[%emt
00:00:02]} Kg6 {[%clk 00:00:15]} 43. Qxc7 {[%clk 00:00:32]} {[%emt 00:00:15]}
e4 {[%clk 00:00:17]} {[%emt 00:00:01]} 44. Qc5 {[%clk 00:00:30]} {[%emt
00:00:05]} Rd3 {[%clk 00:00:16]} {[%emt 00:00:03]} 45. Qh5# {[%clk 00:00:31]}
{[%emt 00:00:02]} 1-0

[Event "4. Memorial Svat.Hastika OPEN"]
[Site "Jesenik, Czech Republic"]
[Date "2022.09.03"]
[Round "8.1"]
[White "Skovron, Josef"]
[Black "Gnida, Patrik"]
[Result "0-1"]
[TimeControl "720+3"]
[WhiteFideId "329886"]
[BlackFideId "351660"]
[WhiteElo "1821"]
[BlackElo "2092"]

1. e4 {[%clk 00:12:03]} {[%emt 00:00:02]} c6 {[%clk 00:12:06]} 2. Nf3 {[%clk
00:12:03]} {[%emt 00:00:04]} d5 {[%clk 00:12:08]} 3. Nc3 {[%clk 00:12:05]}
{[%emt 00:00:02]} dxe4 {[%clk 00:12:10]} 4. Nxe4 {[%clk 00:12:08]} Nf6 {[%clk
00:12:13]} {[%emt 00:00:01]} 5. Nxf6+ {[%clk 00:12:09]} {[%emt 00:00:02]} exf6
{[%clk 00:12:15]} 6. d4 {[%clk 00:12:01]} {[%emt 00:00:11]} Bd6 {[%clk
00:12:17]} {[%emt 00:00:02]} 7. h3 {[%clk 00:11:43]} {[%emt 00:00:20]} O-O
{[%clk 00:12:18]} {[%emt 00:00:02]} 8. Be2 {[%clk 00:11:42]} {[%emt 00:00:04]}
Nd7 {[%clk 00:12:19]} {[%emt 00:00:02]} 9. O-O {[%clk 00:11:42]} {[%emt
00:00:03]} Re8 {[%emt 00:00:11]} 10. Re1 {[%clk 00:11:36]} Nf8 {[%clk
00:12:21]} {[%emt 00:00:02]} 11. a3 {[%clk 00:11:12]} {[%emt 00:00:26]} Be6
{[%clk 00:12:20]} {[%emt 00:00:05]} 12. c4 {[%clk 00:10:58]} {[%emt 00:00:17]}
Ng6 {[%clk 00:12:09]} {[%emt 00:00:15]} 13. b4 {[%clk 00:08:57]} {[%emt
00:02:03]} a5 {[%clk 00:12:01]} {[%emt 00:00:11]} 14. Bd2 {[%clk 00:08:25]}
{[%emt 00:00:35]} axb4 {[%clk 00:11:43]} {[%emt 00:00:21]} 15. axb4 {[%clk
00:08:27]} {[%emt 00:00:02]} Rxa1 {[%clk 00:11:45]} 16. Qxa1 {[%clk 00:08:28]}
Bb8 {[%clk 00:11:47]} {[%emt 00:00:01]} 17. Qa5 {[%clk 00:05:55]} {[%emt
00:02:37]} Qd7 {[%clk 00:10:43]} {[%emt 00:01:06]} 18. Bf1 {[%clk 00:04:09]}
{[%emt 00:01:48]} Rd8 {[%clk 00:10:17]} {[%emt 00:00:30]} 19. Be3 {[%clk
00:03:52]} {[%emt 00:00:20]} Bc7 {[%clk 00:10:02]} {[%emt 00:00:18]} 20. Qa1
{[%clk 00:03:41]} {[%emt 00:00:14]} Bf5 {[%clk 00:09:57]} {[%emt 00:00:07]} 21.
Qc1 {[%clk 00:02:56]} {[%emt 00:00:48]} Be4 {[%clk 00:09:45]} {[%emt 00:00:16]}
22. Be2 {[%clk 00:02:31]} {[%emt 00:00:28]} Qd6 {[%clk 00:09:43]} {[%emt
00:00:05]} 23. g3 {[%clk 00:02:09]} {[%emt 00:00:25]} Qxb4 {[%clk 00:09:44]}
{[%emt 00:00:02]} 24. h4 {[%clk 00:02:01]} {[%emt 00:00:12]} Nf8 {[%clk
00:09:33]} {[%emt 00:00:13]} 25. c5 {[%clk 00:01:16]} {[%emt 00:00:48]} Ne6
{[%clk 00:09:11]} {[%emt 00:00:25]} 26. Nd2 {[%clk 00:00:39]} {[%emt 00:00:40]}
Bd5 {[%clk 00:08:53]} {[%emt 00:00:21]} 27. Qa1 {[%clk 00:00:18]} {[%emt
00:00:24]} Qa5 {[%clk 00:08:21]} {[%emt 00:00:35]} 28. Qb2 {[%clk 00:00:12]}
{[%emt 00:00:09]} Qa8 {[%clk 00:08:16]} {[%emt 00:00:08]} 29. Rb1 {[%clk
00:00:13]} {[%emt 00:00:02]} f5 {[%clk 00:08:02]} {[%emt 00:00:18]} 30. Nc4
{[%clk 00:00:11]} {[%emt 00:00:04]} f4 {[%clk 00:07:55]} {[%emt 00:00:10]} 31.
gxf4 {[%clk 00:00:07]} {[%emt 00:00:07]} Nxf4 {[%clk 00:07:48]} {[%emt
00:00:10]} 32. Bg4 {[%clk 00:00:06]} {[%emt 00:00:04]} Bxc4 {[%clk 00:07:40]}
{[%emt 00:00:11]} 33. Qxb7 {[%clk 00:00:07]} {[%emt 00:00:02]} Qxb7 {[%clk
00:07:38]} {[%emt 00:00:05]} 34. Rxb7 {[%clk 00:00:09]} Nd5 {[%clk 00:07:37]}
{[%emt 00:00:05]} 35. Bd2 {[%clk 00:00:08]} {[%emt 00:00:04]} Rb8 {[%clk
00:07:12]} {[%emt 00:00:29]} 36. Ra7 {[%clk 00:00:06]} {[%emt 00:00:05]} h5
{[%clk 00:07:05]} {[%emt 00:00:09]} 37. Bxh5 {[%clk 00:00:06]} {[%emt
00:00:03]} Rb1+ {[%clk 00:07:01]} {[%emt 00:00:08]} 38. Kg2 {[%clk 00:00:05]}
{[%emt 00:00:05]} Nf4+ {[%clk 00:07:03]} 39. Bxf4 {[%emt 00:00:05]} Bxf4 {[%emt
00:00:01]} 0-1

[Event "4. Memorial Svat.Hastika OPEN"]
[Site "Jesenik, Czech Republic"]
[Date "2022.09.03"]
[Round "8.2"]
[White "Banasik, Krzysztof"]
[Black "Zrubek, Dan"]
[Result "1-0"]
[TimeControl "720+3"]
[WhiteFideId "1125222"]
[BlackFideId "23718714"]
[WhiteElo "2166"]
[BlackElo "1504"]

1. e4 {[%clk 00:12:05]} {[%emt 00:00:01]} c6 {[%clk 00:12:02]} {[%emt
00:00:04]} 2. d3 {[%clk 00:12:05]} {[%emt 00:00:02]} d5 {[%clk 00:12:03]}
{[%emt 00:00:03]} 3. Nd2 {[%clk 00:12:07]} dxe4 {[%clk 00:11:51]} {[%emt
00:00:15]} 4. dxe4 {[%clk 00:12:08]} {[%emt 00:00:01]} Nf6 {[%clk 00:11:48]}
{[%emt 00:00:07]} 5. Ngf3 {[%clk 00:12:05]} {[%emt 00:00:06]} Bg4 {[%clk
00:11:40]} {[%emt 00:00:12]} 6. h3 {[%clk 00:11:43]} {[%emt 00:00:24]} Bh5
{[%clk 00:11:37]} {[%emt 00:00:06]} 7. Be2 {[%clk 00:11:33]} {[%emt 00:00:13]}
Nbd7 {[%clk 00:11:30]} {[%emt 00:00:09]} 8. O-O {[%clk 00:11:17]} {[%emt
00:00:19]} e6 {[%clk 00:11:23]} {[%emt 00:00:11]} 9. c4 {[%clk 00:10:06]}
{[%emt 00:01:13]} Nb6 {[%clk 00:10:29]} {[%emt 00:00:57]} 10. e5 {[%clk
00:10:00]} {[%emt 00:00:09]} Nfd7 {[%clk 00:10:15]} {[%emt 00:00:17]} 11. b3
{[%clk 00:09:55]} {[%emt 00:00:09]} Bb4 {[%clk 00:09:46]} {[%emt 00:00:30]} 12.
Bb2 {[%clk 00:09:51]} {[%emt 00:00:08]} O-O {[%clk 00:09:26]} {[%emt 00:00:23]}
13. Ne4 {[%clk 00:09:47]} {[%emt 00:00:07]} Bg6 {[%clk 00:08:56]} {[%emt
00:00:32]} 14. Ng3 {[%clk 00:09:27]} {[%emt 00:00:24]} Qc7 {[%clk 00:08:38]}
{[%emt 00:00:21]} 15. Bd3 {[%clk 00:09:10]} {[%emt 00:00:20]} Bxd3 {[%clk
00:07:03]} {[%emt 00:01:38]} 16. Qxd3 {[%clk 00:09:11]} {[%emt 00:00:02]} Rad8
{[%clk 00:06:49]} {[%emt 00:00:16]} 17. Rad1 {[%clk 00:07:52]} {[%emt
00:01:23]} Be7 {[%clk 00:05:42]} {[%emt 00:01:10]} 18. Qe2 {[%clk 00:06:25]}
{[%emt 00:01:30]} h6 {[%clk 00:04:58]} {[%emt 00:00:47]} 19. Rd2 {[%clk
00:05:22]} {[%emt 00:01:06]} Rfe8 {[%clk 00:03:37]} {[%emt 00:01:25]} 20. Rfd1
{[%clk 00:05:17]} {[%emt 00:00:08]} Nf8 {[%clk 00:03:28]} {[%emt 00:00:12]} 21.
Ne4 {[%clk 00:05:13]} {[%emt 00:00:06]} Rxd2 {[%clk 00:02:42]} {[%emt
00:00:50]} 22. Rxd2 {[%clk 00:05:14]} {[%emt 00:00:01]} Rd8 {[%clk 00:02:38]}
{[%emt 00:00:06]} 23. Qe3 {[%clk 00:05:00]} {[%emt 00:00:18]} Ng6 {[%clk
00:02:19]} {[%emt 00:00:22]} 24. Rxd8+ {[%clk 00:04:03]} {[%emt 00:01:00]} Qxd8
{[%clk 00:02:15]} {[%emt 00:00:07]} 25. Qd4 {[%clk 00:03:07]} {[%emt 00:00:59]}
Qxd4 {[%clk 00:01:32]} {[%emt 00:00:46]} 26. Bxd4 {[%clk 00:03:08]} {[%emt
00:00:02]} Nc8 {[%clk 00:01:28]} {[%emt 00:00:07]} 27. g3 {[%clk 00:03:04]}
{[%emt 00:00:07]} Kf8 {[%clk 00:01:10]} {[%emt 00:00:21]} 28. Kf1 {[%clk
00:03:00]} {[%emt 00:00:07]} Ke8 {[%clk 00:01:10]} {[%emt 00:00:03]} 29. Ke2
{[%clk 00:03:02]} {[%emt 00:00:02]} Kd7 {[%clk 00:01:10]} 30. Ne1 {[%clk
00:02:49]} {[%emt 00:00:17]} b6 {[%clk 00:00:44]} {[%emt 00:00:30]} 31. f4
{[%clk 00:02:48]} {[%emt 00:00:04]} c5 {[%clk 00:00:34]} {[%emt 00:00:14]} 32.
Bc3 {[%clk 00:02:49]} a6 {[%clk 00:00:35]} {[%emt 00:00:02]} 33. Nd3 {[%clk
00:02:38]} {[%emt 00:00:14]} Na7 {[%clk 00:00:34]} {[%emt 00:00:04]} 34. h4
{[%clk 00:02:16]} {[%emt 00:00:25]} h5 {[%clk 00:00:25]} {[%emt 00:00:12]} 35.
a3 {[%clk 00:01:06]} {[%emt 00:01:14]} Nc6 {[%clk 00:00:08]} {[%emt 00:00:19]}
36. Ke3 {[%clk 00:00:58]} {[%emt 00:00:11]} Kc7 {[%clk 00:00:07]} {[%emt
00:00:05]} 37. Kf3 {[%clk 00:00:48]} {[%emt 00:00:13]} Kd7 {[%clk 00:00:05]}
{[%emt 00:00:04]} 38. Ndf2 {[%clk 00:00:40]} {[%emt 00:00:10]} Ke8 {[%clk
00:00:06]} {[%emt 00:00:04]} 39. Nd1 {[%clk 00:00:40]} {[%emt 00:00:02]} Kd7
{[%clk 00:00:07]} {[%emt 00:00:02]} 40. Ne3 {[%clk 00:00:42]} {[%emt 00:00:01]}
Bd8 {[%clk 00:00:06]} {[%emt 00:00:05]} 41. Ng5 {[%clk 00:00:30]} {[%emt
00:00:14]} Ke7 {[%clk 00:00:07]} {[%emt 00:00:02]} 42. Ke4 {[%clk 00:00:29]}
{[%emt 00:00:04]} Bc7 {[%clk 00:00:06]} {[%emt 00:00:05]} 43. b4 {[%clk
00:00:27]} {[%emt 00:00:04]} cxb4 44. axb4 {[%clk 00:00:29]} b5 {[%clk
00:00:06]} {[%emt 00:00:03]} 45. c5 {[%clk 00:00:22]} {[%emt 00:00:09]} Bb8
{[%clk 00:00:06]} {[%emt 00:00:04]} 46. Nf3 {[%clk 00:00:17]} {[%emt 00:00:07]}
Nf8 {[%clk 00:00:06]} {[%emt 00:00:03]} 47. Nd4 {[%clk 00:00:18]} {[%emt
00:00:03]} Nxd4 {[%clk 00:00:07]} {[%emt 00:00:02]} 48. Bxd4 {[%clk 00:00:19]}
g6 {[%clk 00:00:07]} {[%emt 00:00:02]} 49. g4 {[%clk 00:00:21]} {[%emt
00:00:02]} hxg4 {[%clk 00:00:08]} {[%emt 00:00:02]} 50. Nxg4 {[%clk 00:00:23]}
Nd7 {[%clk 00:00:10]} 51. c6 {[%clk 00:00:24]} {[%emt 00:00:02]} Nf8 {[%clk
00:00:07]} {[%emt 00:00:06]} 52. Bc5+ {[%clk 00:00:26]} {[%emt 00:00:01]} Ke8
{[%clk 00:00:09]} {[%emt 00:00:02]} 53. Bd6 {[%clk 00:00:20]} {[%emt 00:00:09]}
Bxd6 {[%clk 00:00:10]} {[%emt 00:00:02]} 54. exd6 {[%clk 00:00:21]} {[%emt
00:00:01]} Kd8 {[%clk 00:00:12]} 1-0

[Event "4. Memorial Svat.Hastika OPEN"]
[Site "Jesenik, Czech Republic"]
[Date "2022.09.03"]
[Round "8.3"]
[White "Wrobel, Maciej"]
[Black "Gawlas, Roman"]
[Result "1-0"]
[TimeControl "720+3"]
[WhiteFideId "1181351"]
[BlackFideId "351652"]
[WhiteElo "1873"]
[BlackElo "1906"]

1. e4 {[%emt 00:11:15]} c5 {[%emt 00:00:01]} 2. Nf3 {[%clk 00:00:00]} {[%emt
00:00:02]} e6 {[%clk 00:00:00]} 3. d4 {[%clk 00:00:00]} {[%emt 00:00:04]} cxd4
{[%clk 00:00:00]} {[%emt 00:00:02]} 4. Nxd4 {[%clk 00:00:00]} {[%emt 00:00:02]}
Nc6 {[%clk 00:00:00]} 5. Nc3 {[%clk 00:12:03]} {[%emt 00:00:12]} Qc7 {[%clk
00:12:03]} 6. Ndb5 {[%clk 00:11:32]} {[%emt 00:02:21]} Qb8 {[%clk 00:12:05]}
{[%emt 00:00:01]} 7. Be3 {[%clk 00:11:26]} {[%emt 00:00:10]} a6 {[%clk
00:12:05]} {[%emt 00:00:02]} 8. Bb6 {[%clk 00:11:21]} {[%emt 00:00:07]} axb5
{[%clk 00:12:04]} {[%emt 00:00:04]} 9. Nxb5 {[%clk 00:11:22]} {[%emt 00:00:03]}
Bb4+ {[%clk 00:12:06]} {[%emt 00:00:01]} 10. c3 {[%clk 00:11:15]} {[%emt
00:00:10]} Ba5 {[%clk 00:12:06]} {[%emt 00:00:02]} 11. Nc7+ {[%clk 00:10:36]}
{[%emt 00:00:42]} Qxc7 {[%clk 00:12:07]} {[%emt 00:00:02]} 12. Bxc7 {[%clk
00:10:38]} {[%emt 00:00:02]} Bxc7 {[%clk 00:12:08]} 13. Qg4 {[%clk 00:10:35]}
{[%emt 00:00:06]} g6 {[%clk 00:12:10]} {[%emt 00:00:02]} 14. Bb5 {[%clk
00:09:43]} {[%emt 00:00:54]} Kf8 {[%clk 00:12:11]} {[%emt 00:00:02]} 15. O-O
{[%clk 00:09:37]} {[%emt 00:00:09]} Kg7 {[%clk 00:12:08]} {[%emt 00:00:06]} 16.
f4 {[%clk 00:09:23]} {[%emt 00:00:17]} d5 {[%clk 00:10:27]} {[%emt 00:01:44]}
17. f5 {[%clk 00:07:07]} {[%emt 00:02:20]} dxe4 {[%clk 00:06:19]} {[%emt
00:04:11]} 18. fxg6 {[%clk 00:05:36]} {[%emt 00:01:34]} hxg6 {[%clk 00:06:11]}
{[%emt 00:00:10]} 19. h3 {[%clk 00:05:03]} {[%emt 00:00:36]} f5 {[%clk
00:05:36]} {[%emt 00:00:38]} 20. Qe2 {[%clk 00:04:46]} {[%emt 00:00:20]} Nge7
{[%emt 00:01:05]} 21. Rad1 {[%clk 00:04:20]} Rxa2 {[%clk 00:04:15]} {[%emt
00:00:51]} 22. Bc4 {[%clk 00:03:44]} {[%emt 00:00:39]} Ra8 {[%clk 00:03:38]}
{[%emt 00:00:40]} 23. Qc2 {[%clk 00:03:33]} {[%emt 00:00:14]} Ne5 {[%clk
00:03:30]} {[%emt 00:00:11]} 24. Qb3 {[%clk 00:03:30]} {[%emt 00:00:07]} Nxc4
{[%clk 00:03:13]} {[%emt 00:00:20]} 25. Qxc4 {[%clk 00:03:31]} {[%emt
00:00:01]} Bb6+ {[%clk 00:02:36]} {[%emt 00:00:40]} 26. Kh1 {[%clk 00:03:33]}
{[%emt 00:00:01]} Nd5 {[%clk 00:02:35]} {[%emt 00:00:05]} 27. Rxd5 {[%clk
00:03:00]} {[%emt 00:00:36]} exd5 {[%clk 00:02:36]} {[%emt 00:00:02]} 28. Qxd5
{[%clk 00:03:00]} {[%emt 00:00:02]} Bd8 {[%clk 00:01:51]} {[%emt 00:00:48]} 29.
Qe5+ {[%clk 00:02:46]} {[%emt 00:00:17]} Bf6 {[%clk 00:01:43]} {[%emt
00:00:10]} 30. Qc7+ {[%clk 00:02:49]} Kh6 {[%emt 00:00:52]} 31. Qf7 {[%clk
00:02:12]} Ra6 {[%clk 00:00:56]} {[%emt 00:00:40]} 32. g4 {[%clk 00:02:14]}
{[%emt 00:00:01]} Kg5 {[%clk 00:00:45]} {[%emt 00:00:15]} 33. gxf5 {[%clk
00:01:56]} {[%emt 00:00:20]} Bxf5 {[%clk 00:00:20]} {[%emt 00:00:28]} 34. Rg1+
{[%clk 00:01:50]} {[%emt 00:00:09]} Kf4 {[%clk 00:00:07]} {[%emt 00:00:14]} 35.
Qc7+ {[%clk 00:01:42]} {[%emt 00:00:14]} Be5 {[%clk 00:00:09]} 36. Rf1+ {[%clk
00:01:45]} Ke3 {[%clk 00:00:05]} {[%emt 00:00:07]} 37. Qxe5 {[%clk 00:01:45]}
{[%emt 00:00:02]} Rxh3+ {[%clk 00:00:06]} {[%emt 00:00:02]} 38. Kg2 {[%clk
00:01:44]} {[%emt 00:00:04]} Ra2 {[%clk 00:00:08]} {[%emt 00:00:02]} 39. Qd4+
{[%emt 00:00:05]} Ke2 {[%emt 00:00:03]} 40. Rf2+ {[%clk 00:01:30]} {[%emt
00:00:08]} 1-0